fUST/lending_fUST_20251211
["ID","MTS","AMOUNT","RATE_DAILY","PERIOD"]
[398115605,1765382884408,476.0,6.644e-05,2]
[398115606,1765382884720,476.0,6.644e-05,2]
[398115607,1765382885058,475.99,6.644e-05,2]
[398115640,1765383032596,-2000.0,0.00011198,3]
[398115643,1765383032605,-1367.50945516,0.00012842,2]
[398115646,1765383032615,-3611.987617,0.00013497,2]
[398115648,1765383032624,-896.949907,0.00013699,2]
[398115650,1765383032633,-523.70112137,0.00013764,2]
[398115652,1765383032643,-942.66201846,0.00013764,2]
[398115654,1765383032652,-1675.84358838,0.00013764,2]
[398115655,1765383032661,-2618.50560684,0.00013764,2]
[398115657,1765383032670,-3770.64807385,0.00013764,2]
[398115658,1765383032679,-150.0,0.00013863,2]
[398115659,1765383032688,-300.0,0.00014038,2]
[398115660,1765383032698,-300.0,0.00014038,2]
[398115661,1765383032708,-300.0,0.00014038,2]
[398115662,1765383032717,-300.0,0.00014038,2]
[398115663,1765383032726,-300.0,0.00014038,2]
[398115664,1765383032735,-300.0,0.00014038,2]
[398115665,1765383032745,-300.0,0.00014038,2]
[398115666,1765383032754,-300.0,0.00014038,2]
[398115667,1765383032764,-300.0,0.00014038,2]
[398115668,1765383032773,-300.0,0.00014038,2]
[398115669,1765383032782,-300.0,0.00014038,2]
[398115670,1765383032791,-300.0,0.00014038,2]
[398115671,1765383032801,-300.0,0.00014038,2]
[398115672,1765383032982,-300.0,0.00014038,2]
[398115673,1765383032992,-300.0,0.00014038,2]
[398115674,1765383033001,-600.0,0.00014038,2]
[398115675,1765383033013,-3642.697387,0.00014387,2]
[398115676,1765383033023,-1844.67,0.00014487,2]
[398115677,1765383033032,-500.0,0.00014487,2]
[398115678,1765383033040,-5930.4,0.00014487,2]
[398115679,1765383033048,-1783.47,0.00014487,2]
[398115680,1765383033057,-9975.06,0.00014487,2]
[398115681,1765383033066,-1190.01,0.00014487,2]
[398115682,1765383033076,-504.99,0.00014487,2]
[398115683,1765383033086,-628.46,0.00014487,2]
[398115684,1765383033095,-1909.0,0.00014487,2]
[398115685,1765383033105,-1332.25922227,0.00014487,2]
[398115686,1765383033118,-2020.91077773,0.00014487,2]
[398115687,1765383033128,-4683.61,0.00014487,2]
[398115688,1765383033137,-2343.83,0.00014487,2]
[398115689,1765383033147,-1759.65,0.00014487,2]
[398115690,1765383033156,-784.31,0.00014487,2]
[398115691,1765383033165,-1191.96,0.00014487,2]
[398115692,1765383033175,-500.0,0.00014487,2]
[398115693,1765383033185,-500.0,0.00014487,2]
[398115694,1765383033195,-724.3,0.00014487,2]
[398115695,1765383033204,-2537.2,0.00014487,2]
[398115696,1765383033214,-847.09,0.00014487,2]
[398115697,1765383033224,-1440.67,0.00014487,2]
[398115698,1765383033234,-2301.95,0.00014487,2]
[398115699,1765383033243,-441.66801675,0.00014488,2]
[398115700,1765383033253,-795.00243015,0.00014488,2]
[398115701,1765383033262,-1413.3376536,0.00014488,2]
[398115702,1765383033272,-2208.34008375,0.00014488,2]
[398115703,1765383033282,-3180.00972061,0.00014488,2]
[398115704,1765383033292,-4328.34656416,0.00014488,2]
[398115705,1765383033302,-5653.35061441,0.00014488,2]
[398115706,1765383033311,-7155.02187136,0.00014488,2]
[398115707,1765383033321,-369.39277272,0.00014648,2]
[398115708,1765383033331,-148296.68697047,0.00014649,2]
[398115709,1765383033343,-2092.03316173,0.00014649,2]
[398115710,1765383033354,-24656.68036025,0.00014649,2]
[398115729,1765383038694,-978.41,0.00014487,2]
[398115730,1765383038703,-500.0,0.00014487,2]
[398115731,1765383038713,-442.91751506,0.00014487,2]
[398115732,1765383038723,-1147.5481744,0.00014649,2]
[398115733,1765383038735,-538.5067473,0.00014649,2]
[398115746,1765383040894,-88879.10687155,0.00014649,2]
[398115748,1765383040905,-250.0,0.00014649,2]
[398115770,1765383046745,-1607.55839865,0.00014487,2]
[398115911,1765383983814,166.598701,0.00013352,41]
[398115912,1765383984260,166.598701,0.00013352,54]
[398115913,1765383984550,166.598701,0.00013352,67]
[398115914,1765383984688,166.598701,0.00013352,80]
[398115915,1765383984892,166.598701,0.00013352,93]
[398115916,1765383985103,166.598701,0.00013352,106]
[398115917,1765383985346,166.598701,0.00013352,119]
[398115920,1765384104849,692.72101605,0.0001,7]
[398115922,1765384118748,200.0,8e-05,7]
[398116021,1765384231684,-1178.97879449,0.00012109,2]
[398116024,1765384231697,-135.89346585,0.00012109,2]
[398116026,1765384231708,-150.0,0.00012342,2]
[398116028,1765384231718,-224.44289714,0.00012574,2]
[398116030,1765384231729,-262.76,0.00012574,2]
[398116032,1765384231742,-228.6896903,0.00012727,2]
[398116034,1765384231754,-300.0,0.0001335,2]
[398116036,1765384231765,-273.0,0.0001335,2]
[398116038,1765384231776,-1200.0,0.0001335,2]
[398116040,1765384231786,-215.0,0.0001335,2]
[398116042,1765384231797,-2000.0,0.00013351,3]
[398116044,1765384231808,-2000.0,0.00013351,3]
[398116046,1765384231819,-166.598701,0.00013352,2]
[398116048,1765384231829,-166.598701,0.00013352,15]
[398116051,1765384231839,-166.598701,0.00013352,28]
[398116053,1765384231849,-1000.0,0.00013699,2]
[398116055,1765384231859,-1200.0,0.00013763,2]
[398116057,1765384231871,-501.67533301,0.00013764,2]
[398116059,1765384231882,-903.01559941,0.00013764,2]
[398116061,1765384231893,-1605.36106562,0.00013764,2]
[398116063,1765384231903,-2508.37666504,0.00013764,2]
[398116065,1765384231913,-3612.06239765,0.00013764,2]
[398116067,1765384231924,-276.15528941,0.00013764,2]
[398116069,1765384231934,-497.07952095,0.00013764,2]
[398116072,1765384231945,-883.69692613,0.00013764,2]
[398116074,1765384231955,-1380.77644707,0.00013764,2]
[398116075,1765384231965,-1986.3297657,0.00013764,2]
[398116077,1765384231974,-3187.36021359,0.00014285,2]
[398116080,1765384231985,-177.0,0.00014342,2]
[398116082,1765384231996,-2579.17784983,0.00014375,2]
[398116084,1765384232006,-1767.81,0.00014383,2]
[398116086,1765384232016,-500.0,0.00014383,2]
[398116089,1765384232032,-5683.3,0.00014383,2]
[398116091,1765384232041,-8826.99737695,0.00014383,2]
[398116138,1765384237907,-732.43262305,0.00014383,2]
[398116140,1765384237917,-1709.16,0.00014383,2]
[398116142,1765384237926,-500.0,0.00014383,2]
[398116144,1765384237936,-1140.43,0.00014383,2]
[398116146,1765384237945,-602.27,0.00014383,2]
[398116148,1765384237955,-1829.46,0.00014383,2]
[398116150,1765384237964,-2246.17,0.00014383,2]
[398116152,1765384237974,-2192.03975698,0.00014383,2]
[398116155,1765384237985,-1021.41024302,0.00014383,2]
[398116157,1765384237995,-2224.48073141,0.00014383,2]
[398116284,1765384240020,-1049.93319324,0.00014383,2]
[398116286,1765384240032,-1061.69153269,0.00014383,2]
[398116288,1765384240044,-152.35454266,0.00014383,2]
[398116290,1765384240054,-1686.33,0.00014383,2]
[398116292,1765384240064,-751.63,0.00014383,2]
[398116294,1765384240073,-500.0,0.00014383,2]
[398116296,1765384240083,-270.06841334,0.00014383,2]
[398116298,1765384240095,-229.93158666,0.00014383,2]
[398116300,1765384240105,-694.12,0.00014383,2]
[398116302,1765384240114,-500.0,0.00014383,2]
[398116304,1765384240124,-1142.29,0.00014383,2]
[398116306,1765384240133,-657.62,0.00014383,2]
[398116308,1765384240144,-500.0,0.00014383,2]
[398116310,1765384240154,-1380.64,0.00014383,2]
[398116312,1765384240164,-500.0,0.00014383,2]
[398116314,1765384240175,-811.79,0.00014383,2]
[398116316,1765384240185,-500.0,0.00014383,2]
[398116318,1765384240194,-500.0,0.00014383,2]
[398116320,1765384240204,-1791.21,0.00014383,2]
[398116322,1765384240214,-907.16,0.00014383,2]
[398116324,1765384240224,-258.5749409,0.00014383,2]
[398116326,1765384240234,-245.32312656,0.00014383,2]
[398116328,1765384240245,-319.42528956,0.00014384,2]
[398116330,1765384240256,-3953.01309016,0.00014384,2]
[398116333,1765384240273,-1421.1804627,0.00014384,2]
[398116595,1765384243118,-1096.40019257,0.00014383,2]
[398116598,1765384243134,-418.93857618,0.00014383,2]
[398116600,1765384243146,-777.17506577,0.00014383,2]
[398116602,1765384243158,-138.96616548,0.00014383,2]
[398116604,1765384243168,-1755.23133727,0.00014384,2]
[398116606,1765384243179,-278.11369803,0.00014384,2]
[398116608,1765384243190,-8865.14604208,0.00014384,2]
[398116880,1765384245919,-937.64,0.00014383,2]
[398116882,1765384245930,-500.0,0.00014383,2]
[398116884,1765384245940,-477141.95508419,0.00014384,2]
[398119176,1765384597872,286.960874,0.00013076,2]
[398119177,1765384600724,327.95528457,0.00013076,2]
[398119178,1765384603366,511.91770201,0.00013076,2]
[398119179,1765384683157,499.8,7.492e-05,2]
[398119180,1765384683475,499.8,7.492e-05,2]
[398119181,1765384719438,150.0,6.852e-05,2]
[398119182,1765384719838,150.0,7.178e-05,2]
[398119183,1765384720252,150.0,7.505e-05,2]
[398119184,1765384720640,150.0,7.831e-05,2]
[398119185,1765384721035,150.0,8.157e-05,2]
[398119186,1765384721520,150.36,8.483e-05,2]
[398119187,1765384721823,175.42,8.81e-05,2]
[398119188,1765384722860,200.48,9.136e-05,2]
[398119189,1765384722965,225.54,9.462e-05,2]
[398119190,1765384723242,250.6,9.789e-05,2]
[398119239,1765384787899,150.0,6.853e-05,2]
[398119240,1765384813819,3440.0,0.00013278,2]
[398119241,1765384890835,220.80222187,0.00013076,2]
[398119242,1765384893021,397.44399937,0.00013076,2]
[398119243,1765384895968,706.56711,0.00013076,2]
[398119244,1765384898203,1102.90709826,0.00013076,2]
[398119245,1765384950675,3203.15302395,0.00013352,2]
[398119246,1765385074520,284.00044477,0.00013076,2]
[398119247,1765385076818,511.20080058,0.00013076,2]
[398119248,1765385079241,908.80142326,0.00013076,2]
[398119249,1765385081887,1418.58222162,0.00013076,2]
[398119387,1765385431936,-282.24340223,0.00013499,2]
[398119389,1765385431948,-33.16504862,0.00013499,2]
[398119391,1765385431957,-612.0,0.00013499,2]
[398119393,1765385431971,-500.0,0.00013763,2]
[398119395,1765385431985,-150.0,0.00013763,2]
[398119397,1765385431995,-500.0,0.00014037,2]
[398119399,1765385432006,-3734.44061058,0.00014074,2]
[398119401,1765385432016,-2349.49024752,0.00014126,2]
[398119404,1765385432027,-300.0,0.00014172,2]
[398119407,1765385432036,-913.09899747,0.00014173,2]
[398119486,1765385437996,-309.51065545,0.00014173,2]
[398119498,1765385438103,-8440.00535569,0.00014173,2]
[398119500,1765385438113,-170.17700876,0.00014209,2]
[398119502,1765385438122,-306.31861577,0.00014209,2]
[398119504,1765385438132,-544.56642803,0.00014209,2]
[398119506,1765385438144,-850.03415875,0.00014209,2]
[398119508,1765385438154,-500.0,0.00014252,2]
[398119510,1765385438164,-541.77248691,0.00014252,2]
[398119512,1765385438173,-665.19,0.00014253,2]
[398119514,1765385438183,-500.0,0.00014253,2]
[398119550,1765385438538,-1417.55,0.00014253,2]
[398119552,1765385438549,-316.00245863,0.00014269,2]
[398119554,1765385438559,-17511.83797853,0.0001427,2]
[398119556,1765385438571,-226255.95797519,0.0001427,2]
[398119732,1765385440317,-8719.3909719,0.0001427,2]
[398119738,1765385440383,-931.68230671,0.0001427,2]
[398120257,1765385445950,-152209.87987767,0.0001427,2]
[398120259,1765385445960,-2579.17784983,0.00014271,2]
[398120261,1765385445970,-251.67953559,0.00014273,2]
[398120263,1765385445979,-500.0,0.00014273,2]
[398120265,1765385445989,-200.0,0.00014273,2]
[398120267,1765385445999,-500.0,0.00014273,2]
[398120269,1765385446009,-500.0,0.00014273,2]
[398120271,1765385446018,-500.0,0.00014273,2]
[398120273,1765385446028,-500.0,0.00014273,2]
[398120275,1765385446038,-500.0,0.00014273,2]
[398120277,1765385446047,-500.0,0.00014273,2]
[398120279,1765385446057,-533.88981491,0.00014273,2]
[398120281,1765385446066,-500.0,0.00014273,2]
[398120283,1765385446076,-500.0,0.00014273,2]
[398120285,1765385446085,-500.0,0.00014273,2]
[398120287,1765385446095,-500.0,0.00014273,2]
[398120289,1765385446104,-500.0,0.00014273,2]
[398120292,1765385446115,-500.0,0.00014273,2]
[398120295,1765385446124,-500.0,0.00014273,2]
[398120297,1765385446133,-500.0,0.00014273,2]
[398120299,1765385446142,-321.42205673,0.00014273,2]
[398120301,1765385446154,-500.0,0.00014273,2]
[398120303,1765385446163,-250.0,0.00014273,2]
[398120305,1765385446172,-250.0,0.00014273,2]
[398120307,1765385446184,-250.0,0.00014273,2]
[398120309,1765385446193,-291.17825768,0.00014273,2]
[398120311,1765385446203,-250.0,0.00014273,2]
[398120313,1765385446212,-250.0,0.00014273,2]
[398120315,1765385446221,-250.0,0.00014273,2]
[398120317,1765385446231,-250.0,0.00014273,2]
[398120319,1765385446240,-250.0,0.00014273,2]
[398120322,1765385446250,-250.0,0.00014273,2]
[398120324,1765385446260,-250.0,0.00014273,2]
[398120326,1765385446268,-250.0,0.00014273,2]
[398120328,1765385446278,-250.0,0.00014273,2]
[398120330,1765385446287,-250.0,0.00014273,2]
[398120331,1765385446296,-250.0,0.00014273,2]
[398120333,1765385446305,-250.0,0.00014273,2]
[398120336,1765385446314,-250.0,0.00014273,2]
[398120337,1765385446324,-13653.80669022,0.00014275,2]
[398120340,1765385446333,-1851.19,0.00014278,2]
[398120342,1765385446343,-500.0,0.00014278,2]
[398120343,1765385446352,-500.0,0.00014278,2]
[398120345,1765385446361,-6081.51,0.00014278,2]
[398120347,1765385446371,-9905.51,0.00014278,2]
[398120349,1765385446381,-504.79,0.00014278,2]
[398120351,1765385446390,-1768.17,0.00014278,2]
[398120352,1765385446403,-1181.01,0.00014278,2]
[398120354,1765385446412,-1889.88,0.00014278,2]
[398120357,1765385446423,-622.28,0.00014278,2]
[398120359,1765385446433,-2335.43,0.00014278,2]
[398120361,1765385446442,-500.0,0.00014278,2]
[398120363,1765385446452,-3838.16,0.00014278,2]
[398120365,1765385446462,-1982.57,0.00014278,2]
[398120367,1765385446471,-4727.33,0.00014278,2]
[398120369,1765385446481,-805.87,0.00014278,2]
[398120371,1765385446490,-500.0,0.00014278,2]
[398120373,1765385446500,-1177.27,0.00014278,2]
[398120375,1765385446510,-500.14969413,0.00014278,2]
[398120377,1765385446519,-847.07,0.00014278,2]
[398120379,1765385446529,-500.0,0.00014278,2]
[398120381,1765385446538,-978.96,0.00014278,2]
[398120383,1765385446547,-2531.52,0.00014278,2]
[398120385,1765385446556,-3282.04,0.00014278,2]
[398120387,1765385446566,-2384.71,0.00014278,2]
[398120394,1765385446648,-500.0,0.00014278,2]
[398120396,1765385446658,-500.0,0.00014279,2]
[398120398,1765385446669,-500.0,0.00014279,2]
[398120400,1765385446685,-500.0,0.00014279,2]
[398120402,1765385446694,-656.32,0.00014279,2]
[398120404,1765385446704,-500.0,0.00014279,2]
[398120406,1765385446715,-500.0,0.00014279,2]
[398120408,1765385446724,-500.0,0.00014279,2]
[398120410,1765385446735,-262.6772634,0.00014279,2]
[398120412,1765385446744,-500.0,0.00014279,2]
[398120414,1765385446755,-500.0,0.00014279,2]
[398120416,1765385446764,-500.0,0.00014279,2]
[398120418,1765385446774,-1028.15,0.00014279,2]
[398120420,1765385446783,-894.03,0.00014279,2]
[398120422,1765385446792,-500.0,0.00014279,2]
[398120424,1765385446801,-500.0,0.00014279,2]
[398120426,1765385446811,-500.0,0.00014279,2]
[398120428,1765385446823,-500.0,0.00014279,2]
[398120430,1765385446836,-285.69824304,0.00014279,2]
[398120432,1765385446845,-500.0,0.00014279,2]
[398120434,1765385446854,-500.0,0.00014279,2]
[398120436,1765385446864,-500.0,0.00014279,2]
[398120438,1765385446874,-500.0,0.00014279,2]
[398120440,1765385446884,-500.0,0.00014279,2]
[398120442,1765385446893,-500.0,0.00014279,2]
[398120444,1765385446904,-500.0,0.00014279,2]
[398120446,1765385446914,-737.54,0.00014279,2]
[398120449,1765385446923,-500.0,0.00014279,2]
[398120450,1765385446933,-500.0,0.00014279,2]
[398120452,1765385446943,-500.0,0.00014279,2]
[398120454,1765385446952,-500.0,0.00014279,2]
[398120456,1765385446961,-500.0,0.00014279,2]
[398120458,1765385446970,-500.0,0.00014279,2]
[398120460,1765385446980,-500.57519904,0.00014279,2]
[398120462,1765385446989,-500.0,0.00014279,2]
[398120464,1765385446999,-500.0,0.00014279,2]
[398120466,1765385447009,-500.0,0.00014279,2]
[398120468,1765385447018,-1017.14,0.00014279,2]
[398120470,1765385447027,-500.0,0.00014279,2]
[398120472,1765385447037,-500.0,0.00014279,2]
[398120474,1765385447047,-500.0,0.00014279,2]
[398120476,1765385447055,-500.0,0.00014279,2]
[398120478,1765385447065,-500.0,0.00014279,2]
[398120480,1765385447074,-500.0,0.00014279,2]
[398120482,1765385447083,-500.8392134,0.00014279,2]
[398120484,1765385447092,-515.03,0.00014279,2]
[398120486,1765385447101,-500.0,0.00014279,2]
[398120488,1765385447110,-500.0,0.00014279,2]
[398120490,1765385447119,-500.0,0.00014279,2]
[398120492,1765385447128,-500.0,0.00014279,2]
[398120494,1765385447137,-500.0,0.00014279,2]
[398120496,1765385447146,-504.24,0.00014279,2]
[398120498,1765385447157,-500.0,0.00014279,2]
[398120500,1765385447166,-500.0,0.00014279,2]
[398120502,1765385447175,-500.0,0.00014279,2]
[398120504,1765385447184,-500.0,0.00014279,2]
[398120506,1765385447193,-500.0,0.00014279,2]
[398120508,1765385447202,-500.0,0.00014279,2]
[398120510,1765385447211,-500.0,0.00014279,2]
[398120511,1765385447219,-500.0,0.00014279,2]
[398120514,1765385447229,-500.0,0.00014279,2]
[398120515,1765385447238,-634.17,0.00014279,2]
[398120517,1765385447247,-500.0,0.00014279,2]
[398120519,1765385447256,-500.0,0.00014279,2]
[398120521,1765385447265,-500.0,0.00014279,2]
[398120523,1765385447274,-500.0,0.00014279,2]
[398120525,1765385447283,-500.0,0.00014279,2]
[398120527,1765385447292,-500.0,0.00014279,2]
[398120529,1765385447300,-500.0,0.00014279,2]
[398120531,1765385447310,-500.0,0.00014279,2]
[398120533,1765385447319,-500.0,0.00014279,2]
[398120535,1765385447328,-500.0,0.00014279,2]
[398120537,1765385447337,-500.0,0.00014279,2]
[398120539,1765385447346,-500.0,0.00014279,2]
[398120541,1765385447355,-500.0,0.00014279,2]
[398120543,1765385447364,-500.0,0.00014279,2]
[398120545,1765385447373,-500.0,0.00014279,2]
[398120547,1765385447382,-500.0,0.00014279,2]
[398120549,1765385447391,-500.0,0.00014279,2]
[398120551,1765385447401,-500.0,0.00014279,2]
[398120553,1765385447410,-500.0,0.00014279,2]
[398120555,1765385447419,-500.0,0.00014279,2]
[398120557,1765385447428,-500.0,0.00014279,2]
[398120559,1765385447437,-500.0,0.00014279,2]
[398120561,1765385447446,-500.0,0.00014279,2]
[398120563,1765385447455,-500.0,0.00014279,2]
[398120565,1765385447465,-500.0,0.00014279,2]
[398120567,1765385447474,-500.0,0.00014279,2]
[398120569,1765385447484,-1021.67,0.00014279,2]
[398120570,1765385447494,-500.0,0.00014279,2]
[398120572,1765385447503,-500.0,0.00014279,2]
[398120574,1765385447512,-500.0,0.00014279,2]
[398120576,1765385447521,-500.0,0.00014279,2]
[398120578,1765385447530,-500.0,0.00014279,2]
[398120580,1765385447539,-567.71727234,0.00014279,2]
[398120582,1765385447548,-500.0,0.00014279,2]
[398120584,1765385447556,-578.26,0.00014279,2]
[398120586,1765385447565,-500.0,0.00014279,2]
[398120588,1765385447574,-500.0,0.00014279,2]
[398120590,1765385447583,-500.0,0.00014279,2]
[398120592,1765385447592,-306.83157494,0.00014279,2]
[398120594,1765385447601,-1009.75,0.00014279,2]
[398120596,1765385447610,-500.0,0.00014279,2]
[398120598,1765385447619,-500.0,0.00014279,2]
[398120600,1765385447628,-500.0,0.00014279,2]
[398120602,1765385447637,-500.0,0.00014279,2]
[398120603,1765385447646,-500.0,0.00014279,2]
[398120606,1765385447657,-500.0,0.00014279,2]
[398120608,1765385447671,-500.0,0.00014279,2]
[398120610,1765385447681,-500.0,0.00014279,2]
[398120611,1765385447690,-500.0,0.00014279,2]
[398120614,1765385447699,-500.0,0.00014279,2]
[398120616,1765385447710,-1144.23,0.00014279,2]
[398120618,1765385447719,-500.0,0.00014279,2]
[398120620,1765385447728,-500.0,0.00014279,2]
[398120622,1765385447737,-500.91676128,0.00014279,2]
[398120623,1765385447747,-500.0,0.00014279,2]
[398120625,1765385447757,-699.22,0.00014279,2]
[398120626,1765385447766,-866.33,0.00014279,2]
[398120627,1765385447775,-685.36,0.00014279,2]
[398120628,1765385447784,-500.0,0.00014279,2]
[398120629,1765385447793,-500.0,0.00014279,2]
[398120630,1765385447803,-568.58,0.0001428,2]
[398120631,1765385447813,-500.0,0.0001428,2]
[398120632,1765385447823,-1973.19,0.0001428,2]
[398120633,1765385447834,-888.66,0.0001428,2]
[398120634,1765385447844,-5506.12,0.0001428,2]
[398120635,1765385447855,-813.24,0.0001428,2]
[398120636,1765385447866,-500.0,0.0001428,2]
[398120637,1765385447875,-1446.99,0.0001428,2]
[398120638,1765385447885,-1125.63,0.0001428,2]
[398120639,1765385447895,-500.0,0.0001428,2]
[398120640,1765385447907,-1631.2,0.0001428,2]
[398120641,1765385447918,-684.3,0.0001428,2]
[398120642,1765385447928,-500.0,0.0001428,2]
[398120643,1765385447937,-1035.34,0.0001428,2]
[398120645,1765385447946,-473.73028433,0.0001428,2]
[398120647,1765385447957,-3298.71,0.0001428,2]
[398120649,1765385447966,-500.0,0.0001428,2]
[398120651,1765385447975,-1497.5,0.0001428,2]
[398120653,1765385447985,-1669.3,0.0001428,2]
[398120655,1765385447994,-2625.46,0.0001428,2]
[398120657,1765385448003,-2881.95,0.0001428,2]
[398120659,1765385448012,-611.43,0.0001428,2]
[398120661,1765385448021,-500.0,0.0001428,2]
[398120663,1765385448031,-1486.28,0.0001428,2]
[398120665,1765385448041,-1957.8,0.0001428,2]
[398120667,1765385448050,-500.0,0.0001428,2]
[398120669,1765385448059,-500.0,0.0001428,2]
[398120671,1765385448068,-2375.9,0.0001428,2]
[398120674,1765385448078,-500.0,0.0001428,2]
[398120675,1765385448087,-500.0,0.0001428,2]
[398120677,1765385448097,-1282.58,0.0001428,2]
[398120679,1765385448106,-699.13,0.0001428,2]
[398120681,1765385448114,-1603.99,0.0001428,2]
[398120683,1765385448123,-1709.58,0.0001428,2]
[398120685,1765385448132,-506.23324928,0.0001428,2]
[398120687,1765385448141,-607.65,0.0001428,2]
[398120689,1765385448152,-500.0,0.0001428,2]
[398120691,1765385448161,-151.0,0.0001428,2]
[398120693,1765385448171,-151.0,0.0001428,2]
[398120695,1765385448180,-599.23,0.0001428,2]
[398120697,1765385448189,-2864.87,0.0001428,2]
[398120699,1765385448197,-500.0,0.0001428,2]
[398120701,1765385448206,-1909.67,0.0001428,2]
[398120703,1765385448215,-1085.19,0.0001428,2]
[398120705,1765385448225,-8607.89,0.0001428,2]
[398120707,1765385448233,-10769.13,0.0001428,2]
[398120709,1765385448242,-928.06,0.0001428,2]
[398120711,1765385448251,-789.92,0.0001428,2]
[398120713,1765385448260,-2417.68,0.0001428,2]
[398120715,1765385448269,-1855.76,0.0001428,2]
[398120717,1765385448278,-1433.11,0.0001428,2]
[398120719,1765385448287,-500.0,0.0001428,2]
[398120721,1765385448295,-151.0,0.00014281,2]
[398120723,1765385448304,-890000.0,0.00014281,2]
[398120725,1765385448313,-559.25655137,0.00014311,2]
[398120727,1765385448323,-1000.0,0.0001434,2]
[398120729,1765385448333,-190.34,0.0001434,2]
[398120731,1765385448342,-190.34,0.0001434,2]
[398120733,1765385448352,-190.34,0.0001434,2]
[398120735,1765385448361,-190.34,0.0001434,2]
[398120737,1765385448370,-190.34,0.0001434,2]
[398120739,1765385448380,-190.34,0.0001434,2]
[398120741,1765385448389,-190.36,0.0001434,2]
[398120743,1765385448399,-245.24149066,0.00014375,2]
[398120745,1765385448408,-594.72,0.00014375,2]
[398120747,1765385448418,-500.63713789,0.00014375,2]
[398120749,1765385448434,-500.0,0.00014375,2]
[398120751,1765385448443,-762.59,0.00014375,2]
[398120753,1765385448452,-500.0,0.00014375,2]
[398120755,1765385448462,-500.0,0.00014375,2]
[398120757,1765385448472,-500.0,0.00014375,2]
[398120759,1765385448481,-764.96,0.00014375,2]
[398120761,1765385448490,-500.0,0.00014375,2]
[398120763,1765385448500,-500.0,0.00014375,2]
[398120765,1765385448511,-500.0,0.00014375,2]
[398120767,1765385448520,-658.71,0.00014375,2]
[398120769,1765385448529,-769.3,0.00014375,2]
[398120771,1765385448539,-500.0,0.00014375,2]
[398120773,1765385448548,-500.0,0.00014375,2]
[398120775,1765385448557,-500.0,0.00014375,2]
[398120777,1765385448567,-500.0,0.00014375,2]
[398120779,1765385448576,-500.0,0.00014375,2]
[398120781,1765385448586,-2923.68,0.00014375,2]
[398120783,1765385448595,-500.0,0.00014375,2]
[398120785,1765385448605,-500.0,0.00014375,2]
[398120787,1765385448614,-1903.3,0.00014375,2]
[398120789,1765385448623,-726.49,0.00014375,2]
[398120792,1765385448633,-500.0,0.00014375,2]
[398120794,1765385448642,-500.0,0.00014375,2]
[398120796,1765385448653,-500.0,0.00014375,2]
[398120798,1765385448663,-1156.14,0.00014375,2]
[398120800,1765385448674,-500.0,0.00014375,2]
[398120802,1765385448685,-500.0,0.00014375,2]
[398120804,1765385448695,-1468.1,0.00014375,2]
[398120806,1765385448704,-500.0,0.00014375,2]
[398120808,1765385448714,-500.0,0.00014375,2]
[398120810,1765385448723,-1313.88,0.00014375,2]
[398120812,1765385448732,-2235.26,0.00014375,2]
[398120814,1765385448741,-801.84,0.00014375,2]
[398120816,1765385448751,-1702.25,0.00014375,2]